[Event "55th Rubinstein Memorial-C 2019"]
[Site "Polanica-Zdroj"]
[Date "2019.08.25"]
[Round "9.15"]
[White "Musial, Igor"]
[Black "Filipska, Maja"]
[Result "0-1"]
[ECO "B01"]
[WhiteElo "1717"]
[BlackElo "1605"]
[Annotator "NA"]
[PlyCount "126"]
[EventDate "2019.08.17"]
[EventType "swiss"]
[EventCountry "POL"]
[SourceTitle "playchess.com"]
[Source "ChessBase"]
[SourceQuality "1"]
[TimeControl "40/5400+30:1800+30"]

1. e4 {[%emt 0:00:00]} d5 {[%emt 0:00:00]} 2. exd5 {[%emt 0:00:00]} Nf6 {[%emt 0:00:08]} 3. d4 {[%emt 0:00:21]} Nxd5 {[%emt 0:00:12]} 4. Nf3 {[%emt 0:00:10]} Bg4 {[%emt 0:00:36]} 5. c4 {[%emt 0:03:06]} Nb6 {[%emt 0:00:27]} 6. c5 {[%emt 0:01:57]} N6d7 {[%emt 0:00:19]} 7. Bc4 {[%emt 0:04:07]} e6 {[%emt 0:00:59]} 8. Qb3 {[%emt 0:15:59]} Nc6 {[%emt 0:05:03]} 9. Nbd2 {[%emt 0:05:10]} Rb8 {[%emt 0:11:36]} 10. Bb5 {[%emt 0:08:51]} Bxf3 {[%emt 0:14:30]} 11. Nxf3 {[%emt 0:00:21]} Ne7 {[%emt 0:00:20]} 12. O-O {[%emt 0:15:53]} c6 {[%emt 0:05:09]} 13. Bc4 {[%emt 0:06:28]} Ng6 {[%emt 0:10:58]} 14. Bg5 {[%emt 0:04:53]} Be7 {[%emt 0:01:13]} 15. Qe3 {[%emt 0:01:54]} O-O {[%emt 0:01:26]} 16. Bxe7 {[%emt 0:02:04]} Qxe7 {[%emt 0:05:54]} 17. Rfe1 {[%emt 0:01:10]} h6 {[%emt 0:02:58]} 18. Nd2 {[%emt 0:01:31]} Nf6 {[%emt 0:02:56]} 19. Ne4 {[%emt 0:01:58]} Nxe4 {[%emt 0:00:40]} 20. Qxe4 {[%emt 0:00:33]} Qf6 {[%emt 0:01:50]} 21. Rad1 {[%emt 0:04:32]} Rfd8 {[%emt 0:01:31]} 22. Qg4 {[%emt 0:05:16]} Ne7 {[%emt 0:05:53]} 23. Qg3 {[%emt 0:05:06]} Rbc8 {[%emt 0:06:08]} 24. Qe5 {[%emt 0:01:47]} Nd5 {[%emt 0:06:18]} 25. Qxf6 {[%emt 0:02:44]} Nxf6 {[%emt 0:00:22]} 26. g3 {[%emt 0:00:46]} Rd7 {[%emt 0:00:28]} 27. Rd3 {[%emt 0:00:56]} Rcd8 {[%emt 0:00:38]} 28. Red1 {[%emt 0:00:14]} Nd5 {[%emt 0:01:52]} 29. a3 {[%emt 0:01:24]} Ne7 {[%emt 0:00:25]} 30. g4 {[%emt 0:04:50]} Ng6 {[%emt 0:00:16]} 31. f3 {[%emt 0:00:52]} Nf4 {[%emt 0:00:28]} 32. R3d2 {[%emt 0:00:14]} e5 {[%emt 0:00:39]} 33. Kf2 {[%emt 0:00:40]} Rxd4 {[%emt 0:00:43]} 34. Rxd4 {[%emt 0:00:05]} Rxd4 {[%emt 0:00:06]} 35. Rxd4 {[%emt 0:00:02]} exd4 {[%emt 0:00:06]} 36. b4 {[%emt 0:00:41]} Kf8 {[%emt 0:01:03]} 37. h4 {[%emt 0:00:18]} g5 {[%emt 0:00:46]} 38. hxg5 {[%emt 0:00:13]} hxg5 {[%emt 0:00:02]} 39. a4 {[%emt 0:00:38]} a6 {[%emt 0:00:47]} 40. b5 {[%emt 0:00:33]} cxb5 {[%emt 0:01:55]} 41. axb5 {[%emt 0:30:06]} axb5 {[%emt 0:31:11]} 42. Bxb5 {[%emt 0:00:07]} Ne6 {[%emt 0:00:30]} 43. c6 {[%emt 0:01:03]} bxc6 {[%emt 0:00:04]} 44. Bxc6 {[%emt 0:00:06]} Nf4 {[%emt 0:00:08]} 45. Be4 {[%emt 0:00:40]} Ke7 {[%emt 0:00:17]} 46. Ke1 {[%emt 0:00:22]} Kd6 {[%emt 0:00:29]} 47. Kd2 {[%emt 0:02:10]} Ke5 {[%emt 0:01:17]} 48. Ba8 {[%emt 0:00:30]} Ne6 {[%emt 0:02:13]} 49. Kd3 {[%emt 0:00:28]} Nc5+ {[%emt 0:00:50]} 50. Kd2 {[%emt 0:00:35]} Kf4 {[%emt 0:01:52]} 51. Bd5 {[%emt 0:00:14]} f6 {[%emt 0:02:46]} 52. Ba8 {[%emt 0:00:41]} Nd7 {[%emt 0:00:42]} 53. Ke2 {[%emt 0:00:35]} Kg3 {[%emt 0:01:57]} 54. Kd3 {[%emt 0:00:24]} Ne5+ {[%emt 0:00:13]} 55. Kxd4 {[%emt 0:00:04]} Nxf3+ {[%emt 0:00:10]} 56. Ke3 {[%emt 0:00:03]} Nh4 {[%emt 0:00:42]} 57. Ke2 {[%emt 0:00:18]} Kxg4 {[%emt 0:00:10]} 58. Kf2 {[%emt 0:00:05]} f5 {[%emt 0:00:20]} 59. Bb7 {[%emt 0:00:17]} Kh3 {[%emt 0:00:53]} 60. Kg1 {[%emt 0:00:47]} g4 {[%emt 0:00:31]} 61. Bc6 {[%emt 0:01:07]} g3 {[%emt 0:00:45]} 62. Bb7 {[%emt 0:00:41]} g2 {[%emt 0:00:26]} 63. Bc6 {[%emt 0:01:13]} Kg3 {[%emt 0:00:42]} 0-1

[Event "55th Rubinstein Memorial-C 2019"]
[Site "Polanica-Zdroj"]
[Date "2019.08.25"]
[Round "9.16"]
[White "Binkowska, Agata"]
[Black "Brzozowski, Pawel"]
[Result "1-0"]
[ECO "C02"]
[WhiteElo "1896"]
[BlackElo "1496"]
[Annotator "NA"]
[PlyCount "139"]
[EventDate "2019.08.17"]
[EventType "swiss"]
[EventCountry "POL"]
[SourceTitle "playchess.com"]
[Source "ChessBase"]
[SourceQuality "1"]
[TimeControl "40/5400+30:1800+30"]

1. e4 {[%emt 0:00:00]} e6 {[%emt 0:00:00]} 2. d4 {[%emt 0:00:00]} d5 {[%emt 0:00:00]} 3. e5 {[%emt 0:00:00]} c5 {[%emt 0:00:00]} 4. c3 {[%emt 0:00:05]} Nc6 {[%emt 0:00:24]} 5. Nf3 {[%emt 0:00:19]} Qb6 {[%emt 0:00:19]} 6. Bd3 {[%emt 0:00:19]} Bd7 {[%emt 0:00:18]} 7. O-O {[%emt 0:00:08]} cxd4 {[%emt 0:02:38]} 8. cxd4 {[%emt 0:00:07]} Nxd4 {[%emt 0:07:01]} 9. Nxd4 {[%emt 0:00:08]} Qxd4 {[%emt 0:00:15]} 10. Qe2 {[%emt 0:00:06]} Ne7 {[%emt 0:03:03]} 11. Kh1 {[%emt 0:00:16]} Nc6 {[%emt 0:05:13]} 12. f4 {[%emt 0:00:08]} Bc5 {[%emt 0:05:24]} 13. a3 {[%emt 0:03:08]} a6 {[%emt 0:06:26]} 14. Nc3 {[%emt 0:01:08]} Ba7 {[%emt 0:06:10]} 15. Bd2 {[%emt 0:14:05]} O-O-O {[%emt 0:16:01]} 16. b4 {[%emt 0:04:53]} Qb6 {[%emt 0:12:22]} 17. Na4 {[%emt 0:09:42]} Qc7 {[%emt 0:08:20]} 18. Rfc1 {[%emt 0:00:47]} Kb8 {[%emt 0:01:58]} 19. b5 {[%emt 0:05:41]} axb5 {[%emt 0:00:29]} 20. Bxb5 {[%emt 0:00:17]} Rc8 {[%emt 0:03:02]} 21. Rab1 {[%emt 0:02:39]} Ka8 {[%emt 0:01:06]} 22. Qe1 {[%emt 0:11:03]} b6 {[%emt 0:06:23]} 23. Be3 {[%emt 0:03:40]} Qb7 {[%emt 0:04:45]} 24. Bxc6 {[%emt 0:06:27]} Rxc6 {[%emt 0:01:26]} 25. Rxc6 {[%emt 0:00:18]} Qxc6 {[%emt 0:00:20]} 26. Nxb6+ {[%emt 0:03:13]} Bxb6 {[%emt 0:00:07]} 27. Rxb6 {[%emt 0:00:07]} Qa4 {[%emt 0:00:46]} 28. Rb4 {[%emt 0:08:54]} Qa6 {[%emt 0:05:21]} 29. Rb6 {[%emt 0:04:18]} Qa4 {[%emt 0:00:07]} 30. Qe2 {[%emt 0:00:07]} Qc4 {[%emt 0:00:59]} 31. Qb2 {[%emt 0:04:58]} Rc8 {[%emt 0:01:42]} 32. h3 {[%emt 0:01:27]} d4 {[%emt 0:02:02]} 33. Qxd4 {[%emt 0:05:40]} Qxd4 {[%emt 0:00:09]} 34. Bxd4 {[%emt 0:00:06]} Rb8 {[%emt 0:01:19]} 35. Rd6 {[%emt 0:03:18]} Rb7 {[%emt 0:00:17]} 36. Kh2 {[%emt 0:00:11]} Kb8 {[%emt 0:00:19]} 37. Bc5 {[%emt 0:01:01]} Bb5 {[%emt 0:00:29]} 38. Rd8+ {[%emt 0:01:19]} Kc7 {[%emt 0:00:14]} 39. Rg8 {[%emt 0:00:21]} Kc6 {[%emt 0:00:34]} 40. Bb4 {[%emt 0:00:22]} f5 {[%emt 0:01:02]} 41. Rh8 {[%emt 0:31:30]} g6 {[%emt 0:30:30]} 42. Kg3 {[%emt 0:00:39]} Kd5 {[%emt 0:00:42]} 43. Kf3 {[%emt 0:01:04]} Rd7 {[%emt 0:00:54]} 44. Ke3 {[%emt 0:01:34]} Kc4 {[%emt 0:00:24]} 45. Bd6 {[%emt 0:00:06]} Bc6 {[%emt 0:00:38]} 46. g4 {[%emt 0:01:13]} Rb7 {[%emt 0:00:05]} 47. Bb4 {[%emt 0:01:07]} Rd7 {[%emt 0:00:10]} 48. Rc8 {[%emt 0:00:07]} Kd5 {[%emt 0:01:10]} 49. Kf3 {[%emt 0:01:23]} Bb7 {[%emt 0:00:31]} 50. Rc1 {[%emt 0:00:12]} Kd4+ {[%emt 0:00:19]} 51. Kg3 {[%emt 0:00:05]} Bd5 {[%emt 0:00:44]} 52. Kh4 {[%emt 0:01:05]} Ke4 {[%emt 0:00:30]} 53. Rf1 {[%emt 0:00:56]} Bc4 {[%emt 0:00:24]} 54. Rf2 {[%emt 0:00:48]} h6 {[%emt 0:00:35]} 55. gxf5 {[%emt 0:01:31]} Kxf5 {[%emt 0:00:32]} 56. Bd6 {[%emt 0:01:15]} Ra7 {[%emt 0:00:29]} 57. Kg3 {[%emt 0:00:41]} Ra4 {[%emt 0:00:28]} 58. Rd2 {[%emt 0:01:12]} Bd5 {[%emt 0:00:12]} 59. Bb4 {[%emt 0:00:07]} Ra6 {[%emt 0:00:30]} 60. Bf8 {[%emt 0:01:25]} g5 {[%emt 0:00:52]} 61. fxg5 {[%emt 0:00:36]} hxg5 {[%emt 0:00:24]} 62. Bd6 {[%emt 0:00:15]} Ra4 {[%emt 0:00:24]} 63. Rf2+ {[%emt 0:00:28]} Kg6 {[%emt 0:00:39]} 64. Bb4 {[%emt 0:00:07]} Ra8 {[%emt 0:00:31]} 65. Rf6+ {[%emt 0:00:45]} Kh5 {[%emt 0:00:11]} 66. Bf8 {[%emt 0:00:44]} g4 {[%emt 0:00:32]} 67. h4 {[%emt 0:00:29]} Rxa3+ {[%emt 0:00:44]} 68. Bxa3 {[%emt 0:00:07]} Be4 {[%emt 0:00:27]} 69. Rxe6 {[%emt 0:00:09]} Bc6 {[%emt 0:00:15]} 70. Bc1 {[%emt 0:00:07]} 1-0

[Event "55th Rubinstein Memorial-C 2019"]
[Site "Polanica-Zdroj"]
[Date "2019.08.25"]
[Round "9.17"]
[White "Pisarek, Elzbieta"]
[Black "Obrochta, Lena"]
[Result "0-1"]
[ECO "B43"]
[WhiteElo "1581"]
[BlackElo "1870"]
[Annotator "NA"]
[PlyCount "86"]
[EventDate "2019.08.17"]
[EventType "swiss"]
[EventCountry "POL"]
[SourceTitle "playchess.com"]
[Source "ChessBase"]
[SourceQuality "1"]
[TimeControl "40/5400+30:1800+30"]

1. e4 {[%emt 0:00:00]} c5 {[%emt 0:00:00]} 2. Nf3 {[%emt 0:00:30]} e6 {[%emt 0:00:30]} 3. d4 {[%emt 0:00:30]} cxd4 {[%emt 0:00:30]} 4. Nxd4 {[%emt 0:00:30]} a6 {[%emt 0:00:30]} 5. Nc3 {[%emt 0:00:30]} Qc7 {[%emt 0:00:30]} 6. Bd3 {[%emt 0:00:18]} Nf6 {[%emt 0:00:28]} 7. O-O {[%emt 0:00:17]} Be7 {[%emt 0:01:37]} 8. Kh1 {[%emt 0:01:41]} O-O {[%emt 0:00:44]} 9. f4 {[%emt 0:01:03]} d6 {[%emt 0:00:32]} 10. Qe2 {[%emt 0:01:14]} Nc6 {[%emt 0:05:51]} 11. Nxc6 {[%emt 0:06:45]} bxc6 {[%emt 0:00:14]} 12. e5 {[%emt 0:04:31]} Nd5 {[%emt 0:02:46]} 13. Nxd5 {[%emt 0:10:27]} cxd5 {[%emt 0:03:30]} 14. Rf3 {[%emt 0:16:48]} g6 {[%emt 0:05:48]} 15. Rh3 {[%emt 0:16:01]} Re8 {[%emt 0:09:20]} 16. Bd2 {[%emt 0:04:23]} Bf8 {[%emt 0:01:45]} 17. Re1 {[%emt 0:10:47]} Bd7 {[%emt 0:05:22]} 18. Qe3 {[%emt 0:05:07]} Bb5 {[%emt 0:03:45]} 19. Bc3 {[%emt 0:00:53]} Bc6 {[%emt 0:04:57]} 20. exd6 {[%emt 0:05:22]} Qd8 {[%emt 0:10:16]} 21. d7 {[%emt 0:11:30]} Bxd7 {[%emt 0:01:56]} 22. Rxh7 {[%emt 0:00:43]} Kxh7 {[%emt 0:08:12]} 23. Qe5 {[%emt 0:00:56]} f6 {[%emt 0:00:39]} 24. Qh5+ {[%emt 0:00:17]} Kg8 {[%emt 0:00:31]} 25. Bxg6 {[%emt 0:00:52]} Bg7 {[%emt 0:01:08]} 26. Qh7+ {[%emt 0:00:26]} Kf8 {[%emt 0:00:07]} 27. Bxe8 {[%emt 0:00:32]} Qxe8 {[%emt 0:03:05]} 28. Bb4+ {[%emt 0:00:31]} Kf7 {[%emt 0:00:11]} 29. Qh5+ {[%emt 0:00:25]} Kg8 {[%emt 0:00:19]} 30. Qf3 {[%emt 0:00:36]} Rc8 {[%emt 0:04:51]} 31. Qf2 {[%emt 0:00:21]} Qg6 {[%emt 0:01:38]} 32. c3 {[%emt 0:00:35]} e5 {[%emt 0:01:36]} 33. fxe5 {[%emt 0:00:28]} fxe5 {[%emt 0:00:06]} 34. Ba5 {[%emt 0:00:39]} Rf8 {[%emt 0:03:58]} 35. Qc5 {[%emt 0:00:27]} Bc6 {[%emt 0:00:26]} 36. Qg1 {[%emt 0:00:31]} d4 {[%emt 0:01:29]} 37. cxd4 {[%emt 0:00:20]} exd4 {[%emt 0:00:05]} 38. Bb4 {[%emt 0:00:17]} Rb8 {[%emt 0:00:41]} 39. a3 {[%emt 0:00:18]} a5 {[%emt 0:00:37]} 40. Qf1 {[%emt 0:00:38]} axb4 {[%emt 0:01:09]} 41. Qc4+ {[%emt 0:30:15]} Kh8 {[%emt 0:30:15]} 42. Qe2 {[%emt 0:01:06]} Re8 {[%emt 0:00:16]} 43. Qxe8+ {[%emt 0:00:24]} Bxe8 {[%emt 0:00:05]} 0-1

[Event "55th Rubinstein Memorial-C 2019"]
[Site "Polanica-Zdroj"]
[Date "2019.08.25"]
[Round "9.18"]
[White "Koscielny, Edmond"]
[Black "Mulawa, Cyprian"]
[Result "1/2-1/2"]
[ECO "A03"]
[WhiteElo "1841"]
[BlackElo "1578"]
[Annotator "NA"]
[PlyCount "64"]
[EventDate "2019.08.17"]
[EventType "swiss"]
[EventCountry "POL"]
[SourceTitle "playchess.com"]
[Source "ChessBase"]
[SourceQuality "1"]
[TimeControl "40/5400+30:1800+30"]

1. f4 {[%emt 0:00:00]} d5 {[%emt 0:00:00]} 2. Nf3 {[%emt 0:00:00]} g6 {[%emt 0:00:00]} 3. e3 {[%emt 0:00:00]} Bg7 {[%emt 0:00:00]} 4. Be2 {[%emt 0:00:03]} Nf6 {[%emt 0:00:18]} 5. O-O {[%emt 0:00:11]} O-O {[%emt 0:00:11]} 6. d3 {[%emt 0:00:06]} c5 {[%emt 0:00:11]} 7. Qe1 {[%emt 0:00:09]} Nc6 {[%emt 0:00:09]} 8. a4 {[%emt 0:00:16]} b6 {[%emt 0:02:08] A03: Bird's Opening with 1...d5} (8... Qc7 9. Qh4 e5 10. e4 dxe4 11. dxe4 Nxe4 12. fxe5 f5 13. exf6 Nxf6 14. Bc4+ Kh8 15. Bf4 Qd8 16. Nc3 Bf5 {0-1 (46) Lie,K (2547)-Grandelius,N (2515) Wijk aan Zee 2010}) 9. Ne5 {[%emt 0:02:20]} Qc7 {[%emt 0:01:28]} 10. Qg3 {[%emt 0:00:20]} Nd7 $146 {[%emt 0:01:41]} ({Predecessor:} 10... Nxe5 11. fxe5 Ne8 12. d4 Be6 13. c3 f6 14. Bg4 Qd7 15. exf6 exf6 16. Bd1 {0-1 (36) Schaefer-Burkhardt,J corr 1977}) 11. Nxc6 {[%emt 0:01:29]} Qxc6 {[%emt 0:00:47]} 12. c4 {[%emt 0:00:24]} e6 {[%emt 0:01:31]} 13. Nc3 {[%emt 0:01:23]} Nf6 {[%emt 0:01:56]} 14. Bf3 {[%emt 0:03:46]} Qd7 {[%emt 0:04:48]} 15. Rd1 {[%emt 0:03:38]} Bb7 {[%emt 0:01:02]} 16. e4 {[%emt 0:01:17]} d4 {[%emt 0:02:43]} 17. Ne2 {[%emt 0:04:38]} Qc7 {[%emt 0:01:49]} 18. Bd2 {[%emt 0:02:10]} a5 {[%emt 0:01:28]} 19. Qf2 {[%emt 0:05:26]} Nd7 {[%emt 0:03:27]} 20. Rf1 {[%emt 0:07:01]} f5 {[%emt 0:03:14]} 21. e5 {[%emt 0:02:00]} Bxf3 {[%emt 0:00:49]} 22. Qxf3 {[%emt 0:00:18]} g5 {[%emt 0:01:06]} 23. Qg3 {[%emt 0:08:03]} g4 {[%emt 0:02:10] [#]} 24. h3 $1 {[%emt 0:02:20]} gxh3 {[%emt 0:03:40]} 25. gxh3 {[%emt 0:02:18]} Kh8 {[%emt 0:00:20]} 26. Kf2 {[%emt 0:01:30]} Rg8 $11 {[%emt 0:01:10]} 27. Qh4 {[%emt 0:01:21]} Qd8 {[%emt 0:00:43]} 28. Qxd8 {[%emt 0:01:16]} Raxd8 {[%emt 0:00:42]} 29. Kf3 {[%emt 0:01:38]} Bxe5 {[%emt 0:00:50]} 30. Ng3 {[%emt 0:06:08]} Bd6 {[%emt 0:02:14]} 31. Rae1 {[%emt 0:00:25]} Rde8 {[%emt 0:00:40]} 32. Re2 {[%emt 0:01:36]} Re7 {[%emt 0:03:26]} 1/2-1/2

[Event "55th Rubinstein Memorial-C 2019"]
[Site "Polanica-Zdroj"]
[Date "2019.08.25"]
[Round "9.19"]
[White "Jeske, Jerzy"]
[Black "Burdzicki, Stanislaw"]
[Result "0-1"]
[ECO "B27"]
[WhiteElo "1547"]
[BlackElo "1785"]
[Annotator "NA"]
[PlyCount "130"]
[EventDate "2019.08.17"]
[EventType "swiss"]
[EventCountry "POL"]
[SourceTitle "playchess.com"]
[Source "ChessBase"]
[SourceQuality "1"]
[TimeControl "40/5400+30:1800+30"]

1. e4 {[%emt 0:00:08]} c5 {[%emt 0:06:11]} 2. Nf3 {[%emt 0:00:41]} g6 {[%emt 0:00:24]} 3. d4 {[%emt 0:03:55]} cxd4 {[%emt 0:00:22]} 4. Nxd4 {[%emt 0:00:22]} Nc6 {[%emt 0:00:10]} 5. Be2 {[%emt 0:01:32]} Bg7 {[%emt 0:01:26]} 6. Be3 {[%emt 0:00:38]} Nf6 {[%emt 0:01:28]} 7. Nc3 {[%emt 0:01:20]} d6 {[%emt 0:07:37]} 8. h3 {[%emt 0:03:40]} O-O {[%emt 0:01:37]} 9. Qd2 {[%emt 0:01:06]} Bd7 {[%emt 0:01:30]} 10. O-O {[%emt 0:01:59]} Nxd4 {[%emt 0:07:21]} 11. Bxd4 {[%emt 0:00:36]} Qa5 {[%emt 0:00:08]} 12. Rad1 {[%emt 0:04:49]} Rfe8 {[%emt 0:14:09]} 13. f4 {[%emt 0:08:33]} Bc6 {[%emt 0:05:15]} 14. Bf3 {[%emt 0:01:24]} Rad8 {[%emt 0:02:44]} 15. Qf2 {[%emt 0:14:56]} Nd7 {[%emt 0:10:44]} 16. Bxg7 {[%emt 0:05:41]} Kxg7 {[%emt 0:00:17]} 17. Rd2 {[%emt 0:05:58]} Qb6 {[%emt 0:05:15]} 18. Qxb6 {[%emt 0:03:37]} Nxb6 {[%emt 0:00:03]} 19. b3 {[%emt 0:00:32]} Rd7 {[%emt 0:03:03]} 20. Rfd1 {[%emt 0:04:07]} Rc7 {[%emt 0:01:22]} 21. Ne2 {[%emt 0:00:52]} Bd7 {[%emt 0:01:18]} 22. c4 {[%emt 0:00:22]} a5 {[%emt 0:01:34]} 23. Nc3 {[%emt 0:03:42]} a4 {[%emt 0:04:55]} 24. Nd5 {[%emt 0:01:58]} Nxd5 {[%emt 0:00:10]} 25. Rxd5 {[%emt 0:00:07]} Bc6 {[%emt 0:08:18]} 26. R5d3 {[%emt 0:02:04]} axb3 {[%emt 0:01:11]} 27. axb3 {[%emt 0:00:11]} Ra8 {[%emt 0:00:15]} 28. Kf2 {[%emt 0:02:03]} Ra3 {[%emt 0:02:39]} 29. R1d2 {[%emt 0:01:24]} b6 {[%emt 0:02:58]} 30. g4 {[%emt 0:04:25]} Ra1 {[%emt 0:04:49]} 31. Ke3 {[%emt 0:06:54]} Ra3 {[%emt 0:03:26]} 32. g5 {[%emt 0:00:13]} b5 {[%emt 0:00:43]} 33. Rc2 {[%emt 0:03:23]} Bd7 {[%emt 0:01:24]} 34. Rcc3 {[%emt 0:03:40]} bxc4 {[%emt 0:01:25]} 35. bxc4 {[%emt 0:00:19]} Ra4 {[%emt 0:00:20]} 36. Kd4 {[%emt 0:03:37]} Be6 {[%emt 0:00:35]} 37. h4 {[%emt 0:03:55]} Raxc4+ {[%emt 0:00:36]} 38. Rxc4 {[%emt 0:00:12]} Rxc4+ {[%emt 0:00:01]} 39. Ke3 {[%emt 0:00:11]} Rb4 {[%emt 0:00:28]} 40. h5 {[%emt 0:00:20]} Rb3 {[%emt 0:01:07]} 41. h6+ {[%emt 0:30:22]} Kf8 {[%emt 0:30:05]} 42. Bd1 {[%emt 0:00:20]} Rxd3+ {[%emt 0:00:33]} 43. Kxd3 {[%emt 0:00:10]} f6 {[%emt 0:00:51]} 44. Kd4 {[%emt 0:00:10]} Kf7 {[%emt 0:00:34]} 45. Ba4 {[%emt 0:00:17]} Ba2 {[%emt 0:00:22]} 46. Bc6 {[%emt 0:00:08]} Bb3 {[%emt 0:00:37]} 47. Bd7 {[%emt 0:00:09]} Ba2 {[%emt 0:00:17]} 48. Bg4 {[%emt 0:00:41]} Bb1 {[%emt 0:00:44]} 49. Kd5 {[%emt 0:00:31]} Ba2+ {[%emt 0:00:26]} 50. Kd4 {[%emt 0:00:11]} e6 {[%emt 0:00:12]} 51. Be2 {[%emt 0:00:15]} Ke7 {[%emt 0:00:45]} 52. e5 {[%emt 0:00:17]} dxe5+ {[%emt 0:00:27]} 53. fxe5 {[%emt 0:00:22]} fxg5 {[%emt 0:00:06]} 54. Bb5 {[%emt 0:00:31]} Bb1 {[%emt 0:00:23]} 55. Ke3 {[%emt 0:00:07]} Bf5 {[%emt 0:00:48]} 56. Bc6 {[%emt 0:00:32]} Bg4 {[%emt 0:00:46]} 57. Bb5 {[%emt 0:00:13]} Kf7 {[%emt 0:00:29]} 58. Bc6 {[%emt 0:00:07]} Bf5 {[%emt 0:00:36]} 59. Bb5 {[%emt 0:00:13]} Bc2 {[%emt 0:00:39]} 60. Bc6 {[%emt 0:00:08]} Bd1 {[%emt 0:00:22]} 61. Bb5 {[%emt 0:00:10]} Bg4 {[%emt 0:00:26]} 62. Bc6 {[%emt 0:00:08]} Bf5 {[%emt 0:00:16]} 63. Bb5 {[%emt 0:00:06]} g4 {[%emt 0:00:12]} 64. Kf4 {[%emt 0:00:02]} g5+ {[%emt 0:00:54]} 65. Kxg5 {[%emt 0:00:19]} g3 {[%emt 0:00:21]} 0-1

[Event "55th Rubinstein Memorial-C 2019"]
[Site "Polanica-Zdroj"]
[Date "2019.08.25"]
[Round "9.20"]
[White "Kozlowski, Andrzej"]
[Black "Zgoda, Damian"]
[Result "1/2-1/2"]
[ECO "A40"]
[WhiteElo "1566"]
[BlackElo "1725"]
[Annotator "NA"]
[PlyCount "66"]
[EventDate "2019.08.17"]
[EventType "swiss"]
[EventCountry "POL"]
[SourceTitle "playchess.com"]
[Source "ChessBase"]
[SourceQuality "1"]
[TimeControl "40/5400+30:1800+30"]

1. d4 {[%emt 0:09:53]} g6 {[%emt 0:00:00]} 2. g3 {[%emt 0:01:33]} Bg7 {[%emt 0:00:00]} 3. Bg2 {[%emt 0:00:28]} d6 {[%emt 0:00:06]} 4. e3 {[%emt 0:00:23]} Nd7 {[%emt 0:01:55]} 5. Ne2 {[%emt 0:00:27]} e5 {[%emt 0:02:00]} 6. c3 {[%emt 0:01:31]} Ne7 {[%emt 0:00:58]} 7. O-O {[%emt 0:00:20]} O-O {[%emt 0:01:37]} 8. b3 {[%emt 0:00:26]} c6 {[%emt 0:01:12]} 9. Bb2 {[%emt 0:00:35]} d5 {[%emt 0:08:35]} 10. Nd2 {[%emt 0:00:34]} exd4 {[%emt 0:04:48]} 11. cxd4 {[%emt 0:01:00]} Nf6 {[%emt 0:05:03]} 12. Rc1 {[%emt 0:00:44]} Bf5 {[%emt 0:01:21]} 13. Nf3 {[%emt 0:00:56]} Ne4 {[%emt 0:03:24]} 14. Nh4 {[%emt 0:01:17]} Bd7 {[%emt 0:01:05]} 15. Nf3 {[%emt 0:00:55]} Qc8 {[%emt 0:02:12]} 16. Ne5 {[%emt 0:01:32]} Bh3 {[%emt 0:01:04]} 17. Ba3 {[%emt 0:02:56]} Bxg2 {[%emt 0:04:13]} 18. Kxg2 {[%emt 0:00:14]} Re8 {[%emt 0:00:25]} 19. Nf4 {[%emt 0:01:17]} f6 {[%emt 0:02:46]} 20. Ned3 {[%emt 0:01:03]} Nf5 {[%emt 0:01:30]} 21. Nxd5 {[%emt 0:03:22]} g5 {[%emt 0:05:20]} 22. Re1 {[%emt 0:02:09]} Qe6 {[%emt 0:07:54]} 23. Nc3 {[%emt 0:01:40]} Nxc3 {[%emt 0:03:42]} 24. Rxc3 {[%emt 0:00:14]} Rad8 {[%emt 0:04:08]} 25. Qf3 {[%emt 0:01:23]} g4 {[%emt 0:00:46]} 26. Qd1 {[%emt 0:01:27]} Bh6 {[%emt 0:01:31]} 27. Qxg4+ {[%emt 0:01:59]} Kh8 {[%emt 0:00:22]} 28. Qh5 {[%emt 0:00:58]} Qe4+ {[%emt 0:01:47]} 29. Kg1 {[%emt 0:02:02]} Nxe3 {[%emt 0:07:12]} 30. Nf4 {[%emt 0:03:20]} Bxf4 {[%emt 0:02:30]} 31. fxe3 {[%emt 0:00:48]} Rxd4 32. Qe2 Rd5 33. Rc2 Be5 {[%emt 0:08:36]} 1/2-1/2

[Event "55th Rubinstein Memorial-C 2019"]
[Site "Polanica-Zdroj"]
[Date "2019.08.25"]
[Round "9.21"]
[White "Gromada, Andrzej"]
[Black "Rog, Bartlomiej"]
[Result "1-0"]
[ECO "A05"]
[WhiteElo "1721"]
[BlackElo "1540"]
[Annotator "NA"]
[PlyCount "69"]
[EventDate "2019.08.17"]
[EventType "swiss"]
[EventCountry "POL"]
[SourceTitle "playchess.com"]
[Source "ChessBase"]
[SourceQuality "1"]
[TimeControl "40/5400+30:1800+30"]

1. Nf3 {[%emt 0:00:00]} Nf6 {[%emt 0:00:00]} 2. c4 {[%emt 0:00:00]} g6 {[%emt 0:00:00]} 3. Nc3 {[%emt 0:00:11]} Bg7 {[%emt 0:00:13]} 4. g3 {[%emt 0:00:11]} d6 {[%emt 0:00:49]} 5. Bg2 {[%emt 0:00:08]} c5 {[%emt 0:03:17]} 6. O-O {[%emt 0:00:31]} O-O {[%emt 0:00:12]} 7. a3 {[%emt 0:00:22]} Nc6 {[%emt 0:00:47]} 8. Rb1 {[%emt 0:00:24]} d5 {[%emt 0:05:30]} 9. cxd5 {[%emt 0:01:43]} Nxd5 {[%emt 0:02:22]} 10. Nxd5 {[%emt 0:00:19]} Qxd5 {[%emt 0:00:15]} 11. d3 {[%emt 0:00:09]} e5 {[%emt 0:07:31]} 12. Be3 {[%emt 0:00:43]} b6 {[%emt 0:03:26]} 13. Nd4 {[%emt 0:01:31]} Qxg2+ {[%emt 0:02:45]} 14. Kxg2 {[%emt 0:00:06]} exd4 {[%emt 0:00:08]} 15. Bf4 {[%emt 0:00:56]} Bb7 {[%emt 0:00:13]} 16. Kg1 {[%emt 0:01:19]} h6 {[%emt 0:01:51]} 17. b4 {[%emt 0:02:36]} cxb4 {[%emt 0:00:10]} 18. axb4 {[%emt 0:00:01]} g5 {[%emt 0:00:15]} 19. Bd2 {[%emt 0:00:39]} f5 {[%emt 0:00:17]} 20. Rc1 {[%emt 0:06:21]} f4 {[%emt 0:00:40]} 21. b5 {[%emt 0:00:46]} Ne5 {[%emt 0:00:47]} 22. Rc7 {[%emt 0:00:37]} Bd5 {[%emt 0:00:19]} 23. Qa4 {[%emt 0:01:07]} Be6 {[%emt 0:05:45]} 24. Rxg7+ {[%emt 0:01:12]} Kxg7 {[%emt 0:00:24]} 25. Qxd4 {[%emt 0:00:06]} Kf6 {[%emt 0:00:42]} 26. Bc3 {[%emt 0:00:06]} Rae8 {[%emt 0:02:21]} 27. Qxe5+ {[%emt 0:01:38]} Kg6 {[%emt 0:00:26]} 28. Qg7+ {[%emt 0:02:32]} Kh5 {[%emt 0:00:22]} 29. f3 {[%emt 0:00:15]} g4 {[%emt 0:00:52]} 30. Qxa7 {[%emt 0:02:57]} gxf3 {[%emt 0:01:26]} 31. Rxf3 {[%emt 0:02:08]} Bh3 {[%emt 0:00:28]} 32. gxf4 {[%emt 0:05:37]} Bg4 {[%emt 0:01:39]} 33. Kf2 {[%emt 0:02:09]} Bxf3 {[%emt 0:00:26]} 34. Kxf3 {[%emt 0:00:02]} Re6 {[%emt 0:00:18]} 35. Qd7 1-0